bitfinex/quotes_ETHUSD_20250215
["timestamp","ask_amount","ask_price","bid_price","bid_amount"]
[1739581293983,8.11644,2717.4,2716.8,0.76197938]
[1739581294186,0.7563,2717.4,2716.9,3.68053]
[1739581294494,0.7563,2717.4,2717.0,3.68045]
[1739581294690,0.7563,2717.4,2716.9,7.36109]
[1739581294891,0.7563,2717.4,2717.0,0.81230694]
[1739581295192,4.4364,2717.4,2717.0,0.81230694]
[1739581296990,0.7563,2717.4,2717.0,4.49277694]
[1739581297356,0.72245347,2717.7,2717.2,3.68018]
[1739581297357,1.47875347,2717.7,2717.2,3.68018]
[1739581297958,1.47875347,2717.7,2717.3,3.68011]
[1739581298157,1.47875347,2717.7,2717.3,4.498648]
[1739581298377,1.47875347,2717.7,2717.3,0.818538]
[1739581298769,5.15834347,2717.7,2717.3,0.818538]
[1739581298970,5.15834347,2717.7,2717.2,3.68024]
[1739581299365,0.04522406,2717.6,2717.1,3.0]
[1739581299571,1.47875347,2717.7,2717.1,3.71719022]
[1739581299783,1.47875347,2717.7,2717.3,3.68005]
[1739581299985,5.15833347,2717.7,2717.2,0.815]
[1739581300290,5.15833347,2717.7,2717.3,0.817565]
[1739581300465,1.47875347,2717.7,2717.3,0.817565]
[1739581300665,1.47875347,2717.7,2717.3,3.68003]
[1739581300988,1.47875347,2717.7,2717.2,4.49523]
[1739581300989,5.15833347,2717.7,2717.2,4.49523]
[1739581304669,5.15833347,2717.7,2717.3,3.6801]
[1739581304670,1.47875347,2717.7,2717.3,3.6801]
[1739581305806,0.7563,2717.7,2717.3,3.6801]
[1739581306009,4.44729,2717.9,2717.4,3.67994]
[1739581306205,1.52158932,2717.9,2717.5,0.367994]
[1739581306394,3.67886,2718.3,2717.8,3.67936]
[1739581306395,0.7679,2718.1,2717.8,3.67936]
[1739581306566,3.67886,2718.3,2717.8,3.67936]
[1739581306762,4.44676,2718.3,2717.8,3.67936]
[1739581308105,4.44676,2718.3,2717.9,3.67931]
[1739581308319,4.44676,2718.3,2717.6,3.815]
[1739581308320,3.67898,2718.2,2717.6,3.815]
[1739581308523,4.44705,2718.1,2717.5,3.67975]
[1739581309000,0.7679,2718.1,2717.6,7.35922]
[1739581309201,0.7679,2718.1,2717.6,3.6796]
[1739581309505,1.8e-06,2718.4,2717.8,3.11391376]
[1739581309805,1.8e-06,2718.4,2718.0,6.67917]
[1739581310016,1.8e-06,2718.4,2717.9,1.12639138]
[1739581310325,1.8e-06,2718.4,2718.2,3.0]
[1739581310681,1.8e-06,2718.4,2718.1,3.0]
[1739581311005,1.8e-06,2718.4,2718.2,0.667913]
[1739581311367,1.8e-06,2718.4,2718.2,0.70469943]
[1739581311599,1.8e-06,2718.4,2718.2,4.38347943]
[1739581311813,1.8e-06,2718.4,2718.3,4.49376]
[1739581312109,1.8e-06,2718.4,2718.3,7.49376]
[1739581312410,1.8e-06,2718.4,2718.3,8.98919668]
[1739581330292,1.8e-06,2718.4,2718.3,9.7389199]
[1739581330513,1.8e-06,2718.4,2718.3,8.98919668]
[1739581334141,1.8e-06,2718.4,2718.3,9.53919668]
[1739581338249,1.8e-06,2718.4,2718.3,10.2293367]
[1739581338547,1.53036941,2720.1,2719.9,3.67658]
[1739581338755,0.7826,2720.1,2719.9,3.0]
[1739581338951,0.7826,2720.1,2719.9,6.67655]
[1739581339360,0.7826,2720.1,2720.0,3.67647]
[1739581339655,0.7326,2720.1,2719.9,6.67658]
[1739581340420,0.7326,2720.1,2719.9,3.0]
[1739581340651,0.7326,2720.1,2719.9,6.67648]
[1739581342059,0.7326,2720.1,2719.6,3.0]
[1739581342355,3.67648,2720.0,2719.8,3.0]
[1739581342558,0.8062,2719.9,2719.5,3.67709]
[1739581343061,3.67691,2719.7,2719.1,3.67761]
[1739581343221,0.8062,2719.6,2719.2,3.67747]
[1739581343418,0.8062,2719.6,2719.3,3.0]
[1739581343651,0.8062,2719.6,2719.3,3.67732]
[1739581343856,0.8062,2719.6,2719.3,6.67732]
[1739581344374,0.8062,2719.6,2719.3,3.67732]
[1739581344576,0.8062,2719.6,2719.5,3.67714]
[1739581346781,0.7571,2720.0,2719.7,3.67685]
[1739581346984,0.7571,2720.0,2719.7,3.6768]
[1739581347187,0.7571,2720.0,2719.9,3.6766]
[1739581348081,6.0771,2720.2,2719.8,3.67673]
[1739581348384,6.0771,2720.2,2720.1,3.67633]
[1739581349143,6.0771,2720.2,2720.0,3.67646]
[1739581350480,0.7571,2720.2,2720.0,3.67646]
[1739581350788,0.7571,2720.2,2719.9,3.0]
[1739581351082,0.7571,2720.2,2719.9,6.67657]
[1739581351286,0.7571,2720.2,2720.0,3.67638]
[1739581352182,6.5831,2720.6,2720.2,3.67611]
[1739581352369,0.7571,2720.6,2720.2,3.67611]
[1739581353250,0.7571,2720.6,2720.2,7.35223]
[1739581353880,0.7571,2720.6,2720.3,3.67606]
[1739581355289,0.7571,2720.6,2720.1,3.67624]
[1739581355483,0.1477218,2720.8,2720.2,0.7684]
[1739581355686,0.1477218,2720.8,2720.7,3.67552]
[1739581356065,0.1477218,2720.8,2720.7,4.44392]
[1739581356262,0.1477218,2720.8,2720.7,10.55783376]
[1739581362213,3.67332,2722.4,2721.7,3.67407]
[1739581362362,0.7571,2722.3,2721.8,0.367407]
[1739581362691,3.71884406,2722.2,2721.6,3.0]
[1739581362897,0.7571,2722.1,2721.6,3.0]
[1739581363196,4.43082,2722.1,2721.6,3.0]
[1739581363573,4.43082,2722.1,2721.6,6.67428]
[1739581364098,3.6733,2722.4,2720.9,3.11391376]
[1739581364099,0.7571,2721.7,2720.9,3.11391376]
[1739581364255,0.7571,2721.3,2720.6,3.67557]
[1739581364459,4.43189,2721.3,2720.6,3.67557]
[1739581364767,0.7571,2721.3,2721.0,3.67509]
[1739581365371,0.7571,2721.3,2721.2,3.67484]
[1739581365578,4.4311,2721.9,2721.2,8.084593]
[1739581366104,0.7571,2721.9,2721.4,3.67447]
[1739581366760,0.7571,2721.9,2721.4,7.34895]
[1739581366981,0.7571,2721.9,2721.4,3.67447]
[1739581367185,0.7571,2721.9,2721.3,3.67465]
[1739581367392,0.7571,2721.9,2721.4,0.83081568]
[1739581367571,4.43103,2721.9,2721.4,3.0]
[1739581368063,0.7571,2721.9,2721.4,3.0]
[1739581368398,0.7571,2721.9,2721.4,6.67447]
[1739581368594,4.43104,2721.9,2721.4,3.0]
[1739581368804,4.43104,2721.9,2721.2,0.734993]
[1739581368805,0.7571,2721.9,2721.5,3.67433]
[1739581369173,0.7571,2721.9,2721.5,4.409228]
[1739581369374,0.7571,2721.9,2721.6,3.67429]
[1739581370010,0.7571,2721.9,2721.5,4.409228]
[1739581370208,0.7571,2721.9,2721.5,3.67433]
[1739581372107,0.7571,2721.9,2721.5,7.34865]
[1739581372407,0.7571,2721.9,2721.5,3.67432]
[1739581372608,0.7571,2721.9,2721.2,3.84890676]
[1739581372844,0.7571,2721.4,2720.7,3.67551]
[1739581373013,3.67472,2721.3,2720.8,0.367551]
[1739581373213,4.4317,2721.4,2720.9,3.67525]
[1739581373602,3.67471,2721.3,2720.8,3.367551]
[1739581373909,4.43776,2721.2,2720.8,3.0]
[1739581374589,4.43776,2721.2,2720.5,3.67577]
[1739581374590,3.6751,2721.1,2720.5,3.67577]
[1739581374786,3.67508,2721.1,2720.6,3.0]
[1739581375190,7.35016,2721.1,2720.6,3.0]
[1739581375382,3.67518,2721.0,2720.6,3.0]
[1739581375720,3.67518,2721.0,2720.4,6.67592]
[1739581375917,3.67518,2721.0,2720.5,1.03519]
[1739581376726,3.72030406,2721.1,2720.5,1.03519]
[1739581377023,7.35015,2721.1,2720.6,3.0]
[1739581377210,3.67507,2721.1,2720.6,3.0]
[1739581378098,0.7628,2721.2,2720.6,6.67562]
[1739581378300,4.43766,2721.2,2720.6,3.03675252]
[1739581378495,3.675,2721.1,2720.6,3.03675252]
[1739581378712,7.35007,2721.1,2720.6,3.0]
[1739581379094,3.675,2721.1,2720.6,3.0]
[1739581379292,4.43767,2721.2,2720.6,7.48345153]
[1739581379487,3.675,2721.1,2720.6,7.446699]
[1739581379811,3.675,2721.1,2720.6,3.771089]
[1739581380402,0.7628,2721.2,2720.6,0.771089]
[1739581380403,3.67513,2721.0,2720.6,0.771089]
[1739581380597,7.35037,2721.0,2720.4,6.6759]
[1739581380804,3.67527,2720.9,2720.4,6.6759]
[1739581381631,3.67513,2721.0,2720.6,3.0]
[1739581383133,7.35032,2721.0,2720.6,3.0]
[1739581383430,3.67513,2721.0,2720.6,3.0]
[1739581386133,3.67498,2721.1,2720.7,3.0]
[1739581386332,3.67498,2721.1,2720.7,3.67551]
[1739581386496,4.43773,2721.2,2720.7,3.67551]
[1739581386704,0.7628,2721.2,2720.8,0.37122625]
[1739581387237,9.75711,2721.6,2721.1,4.48194]
[1739581387564,6.0828,2721.6,2721.0,3.0]
[1739581387882,0.7628,2721.4,2720.5,0.807]
[1739581388136,3.67534,2720.9,2720.4,3.0]
[1739581388300,3.67534,2720.9,2720.4,7.791801]
[1739581388904,0.7628,2721.0,2720.4,1.115891]
[1739581388905,3.67549,2720.8,2720.4,1.115891]
[1739581389107,3.67548,2720.8,2720.2,4.48312]
[1739581389304,3.67547,2720.8,2720.3,3.0]
[1739581390252,3.67547,2720.8,2720.3,6.67605]
[1739581390538,3.67547,2720.8,2720.2,7.48312]
[1739581390739,7.35095,2720.8,2720.2,7.48312]
[1739581390938,3.67577,2720.6,2720.1,3.67632]
[1739581391252,3.67574,2720.6,2720.2,3.0]
[1739581391817,3.67574,2720.6,2720.0,3.0]
[1739581392116,3.67602,2720.4,2719.8,3.67665]
[1739581392429,3.67602,2720.4,2719.9,3.6766]
[1739581392630,0.7976,2720.5,2720.0,0.70442002]
[1739581393011,5.32,2720.8,2720.4,3.67581]
[1739581393210,5.32,2720.8,2720.5,6.67566]
[1739581393451,0.7976,2721.3,2720.6,4.47885]
[1739581393752,0.7976,2721.3,2720.9,3.0]
[1739581393951,0.7976,2721.5,2721.1,3.0]
[1739581394548,4.4721,2721.5,2721.1,3.0]
[1739581394958,0.7976,2721.5,2721.1,3.0]
[1739581395253,4.47215,2721.5,2721.1,3.0]
[1739581396223,3.67459,2721.4,2720.7,6.6754]
[1739581396453,3.67459,2721.4,2720.7,3.0]
[1739581396629,3.67485,2721.2,2720.7,3.0]
[1739581397557,3.67485,2721.2,2720.7,6.67548]
[1739581398053,3.67459,2721.4,2720.7,6.67548]
[1739581398252,3.67473,2721.3,2720.8,3.747878]
[1739581399626,3.67485,2721.2,2720.8,3.747878]
[1739581400227,7.34978,2721.2,2720.8,3.747878]
[1739581400455,3.67485,2721.2,2720.8,3.747878]
[1739581400758,3.67514,2721.0,2720.6,3.8033]
[1739581400965,3.67503,2721.1,2720.6,7.47893]
[1739581401160,3.67514,2721.0,2720.6,3.8033]
[1739581402933,0.7976,2721.5,2720.6,3.8033]
[1739581403094,3.67519,2721.0,2720.6,3.8033]
[1739581403243,3.67519,2721.0,2720.6,4.551201]
[1739581404061,3.67519,2721.0,2720.6,1.551201]
[1739581404791,0.04522406,2721.1,2720.3,0.8118]
[1739581404995,3.67552,2720.8,2720.3,0.8118]
[1739581405287,3.67553,2720.7,2720.3,3.8118]
[1739581405659,7.351,2720.8,2720.3,3.8118]
[1739581405876,3.67553,2720.7,2720.3,3.8118]
[1739581406194,3.67553,2720.7,2720.4,0.74879]
[1739581407482,3.67616,2720.3,2719.8,0.8118]
[1739581407691,3.67614,2720.3,2719.8,3.8118]
[1739581408010,3.67623,2720.2,2719.8,3.8118]
[1739581408860,3.67623,2720.2,2719.8,3.0]
[1739581409058,3.6764,2720.1,2719.8,0.667682]
[1739581409293,7.35282,2720.1,2719.6,3.0]
[1739581409459,3.6764,2720.1,2719.6,3.0]
[1739581409909,3.67663,2719.9,2719.5,0.8118]
[1739581411182,3.67648,2720.0,2719.6,3.0]
[1739581411579,3.67648,2720.0,2719.5,0.8118]
[1739581411810,3.67648,2720.0,2719.6,0.748904]
[1739581412423,3.67648,2720.0,2719.6,3.748904]
[1739581412872,3.6766,2719.9,2719.6,0.748904]
[1739581413405,3.67641,2720.1,2719.6,0.748904]
[1739581414061,3.67641,2720.1,2719.6,3.748904]
[1739581414264,3.67641,2720.1,2719.7,0.8237834]
[1739581414698,3.67615,2720.3,2719.8,3.6767]
[1739581415069,3.67615,2720.3,2719.8,7.35334]
[1739581415288,3.67615,2720.3,2719.8,3.67664]
[1739581415683,7.3523,2720.3,2719.8,3.67664]
[1739581415881,3.67615,2720.3,2719.7,0.8237834]
[1739581416205,3.67621,2720.2,2719.7,4.5006134]
[1739581416413,0.04522406,2720.3,2719.6,3.748904]
[1739581416615,3.67663,2719.9,2719.5,0.8118]
[1739581416912,3.67685,2719.8,2719.3,3.8118]
[1739581417201,3.6769,2719.7,2719.4,1.048926]
[1739581417374,3.67663,2719.9,2719.4,1.048926]
[1739581417705,3.67682,2719.8,2719.4,1.048926]
[1739581417861,3.67687,2719.7,2719.4,1.048926]
[1739581418065,3.67687,2719.7,2719.0,4.48952]
[1739581418066,4.45607,2719.7,2719.0,4.48952]
[1739581418269,3.67711,2719.6,2719.0,4.48952]
[1739581418468,3.67717,2719.5,2719.1,3.0]
[1739581419162,4.45607,2719.7,2719.1,6.67767]
[1739581419362,4.45607,2719.7,2719.1,4.116719]
[1739581419602,4.45607,2719.7,2719.1,7.794369]
[1739581419603,3.67703,2719.6,2719.1,7.794369]
[1739581420803,3.67703,2719.6,2719.1,1.116719]
[1739581420965,3.67703,2719.6,2719.0,4.48962]
[1739581421489,0.8255,2720.0,2719.2,3.0]
[1739581421705,5.32,2720.1,2719.7,3.67687]
[1739581422005,5.32,2720.1,2719.9,3.0]
[1739581422305,0.8329,2720.4,2719.9,3.0]
[1739581422515,0.8329,2720.7,2720.0,0.667666]
[1739581422709,4.50794,2721.1,2720.5,3.6757]
[1739581423113,0.8329,2721.1,2720.6,3.67557]
[1739581423814,4.50799,2721.1,2720.4,3.67582]
[1739581424026,4.50799,2721.1,2720.5,3.67577]
[1739581424233,8.18307,2721.1,2720.5,3.67577]
[1739581424520,4.50798,2721.1,2720.5,3.67577]
[1739581424682,4.50798,2721.1,2720.5,1.035159]
[1739581425713,3.67548,2720.8,2720.3,3.0]
[1739581426018,4.5085,2720.7,2720.2,0.8043]
[1739581426581,3.67526,2720.9,2720.4,3.6759]
[1739581427116,3.67526,2720.9,2720.3,3.0]
[1739581427315,3.67526,2720.9,2720.2,7.4805]
[1739581427316,3.67526,2720.9,2720.2,4.48038]
[1739581427501,3.67526,2720.9,2720.4,3.0]
[1739581427706,0.8329,2721.0,2720.6,3.0]
[1739581428098,0.8329,2721.0,2720.4,3.67579]
[1739581428298,3.67533,2720.9,2720.3,3.748038]
[1739581428503,3.67541,2720.8,2720.3,3.748038]
[1739581428802,3.67541,2720.8,2720.3,7.424068]
[1739581429115,4.50803,2721.0,2720.5,3.0]
[1739581429319,4.50803,2721.0,2720.5,6.67572]
[1739581429695,4.50803,2721.0,2720.5,3.0]
[1739581429896,4.50803,2721.0,2720.5,6.67577]
[1739581430748,0.04522406,2720.9,2720.3,3.0]
[1739581431018,3.67559,2720.7,2720.3,3.0]
[1739581431324,8.18328,2721.0,2720.4,3.67592]
[1739581431485,3.67527,2720.9,2720.4,3.67592]
[1739581432962,3.67543,2720.8,2720.3,3.667611]
[1739581433228,3.67528,2720.9,2720.3,7.343591]
[1739581434534,3.67541,2720.8,2720.3,7.343591]
[1739581435818,3.67541,2720.8,2720.0,4.48067]
[1739581436012,0.84572406,2720.7,2720.1,6.67623]
[1739581436212,0.8005,2720.7,2720.1,6.67623]
[1739581436824,0.8005,2720.7,2720.3,3.0]
[1739581437042,3.67541,2720.8,2720.4,0.667616]
[1739581440337,4.4757,2721.0,2720.4,0.667616]
[1739581440338,3.67525,2720.9,2720.5,0.8292]
[1739581440907,3.67539,2720.8,2720.5,0.8292]
[1739581441121,3.67539,2720.8,2720.3,0.8292]
[1739581441715,3.67539,2720.8,2720.4,3.0]
[1739581441918,3.67559,2720.7,2720.3,0.8292]
[1739581442419,3.67559,2720.7,2720.3,0.750539]
[1739581442621,7.35119,2720.7,2720.3,0.750539]
[1739581442823,3.67559,2720.7,2720.3,0.750539]
[1739581443553,0.04522406,2720.9,2720.1,0.8014]
[1739581443725,3.67588,2720.5,2720.1,0.8014]
[1739581444113,3.67566,2720.6,2720.1,0.8014]
[1739581444317,3.67566,2720.6,2720.1,4.4777]
[1739581445018,3.72088406,2720.6,2720.1,0.8014]
[1739581445232,3.67617,2720.3,2719.9,0.8014]
[1739581445838,3.67614,2720.3,2719.9,0.8014]
[1739581446348,3.67589,2720.5,2719.9,4.51474159]
[1739581446550,4.46666,2720.7,2720.2,6.67619]
[1739581446964,5.32,2720.9,2720.2,6.67619]
[1739581446965,9.7864,2720.9,2720.3,0.8014]
[1739581447167,3.67548,2720.8,2720.3,0.8014]
[1739581448006,8.99528,2720.9,2720.3,1.549149]
[1739581448156,3.67528,2720.9,2720.5,3.0]
[1739581449580,3.67542,2720.8,2720.4,3.0]
[1739581450039,7.35066,2720.9,2720.4,3.0]
[1739581450239,7.35066,2720.9,2720.4,6.6759]
[1739581450240,3.67528,2720.9,2720.4,6.6759]
[1739581450440,3.67528,2720.9,2720.4,7.791242]
[1739581451624,7.35063,2720.9,2720.4,7.791242]
[1739581451836,3.67528,2720.9,2720.4,6.6759]
[1739581452339,3.67528,2720.9,2720.4,6.67584]
[1739581452938,7.35066,2720.9,2720.4,6.67584]
[1739581453240,6.1111,2721.1,2720.4,6.67584]
[1739581453438,3.67532,2720.9,2720.4,6.67584]
[1739581453670,3.67532,2720.9,2720.4,7.791177]
[1739581454183,3.67532,2720.9,2720.4,11.467027]
[1739581454369,4.46617,2721.1,2720.5,3.67578]
[1739581454567,3.67514,2721.0,2720.5,3.67578]
[1739581454954,3.67529,2720.9,2720.4,7.791177]
[1739581455250,3.67539,2720.8,2720.4,4.115337]
[1739581455652,3.67555,2720.7,2720.4,3.0]
[1739581456777,3.67545,2720.8,2720.4,3.0]
[1739581456984,3.67532,2720.9,2720.4,6.67587]
[1739581457184,3.67521,2721.0,2720.4,3.0]
[1739581457370,3.67534,2720.9,2720.4,3.0]
[1739581457570,3.67534,2720.9,2720.5,0.7857]
[1739581458440,3.67554,2720.7,2720.5,0.7857]
[1739581459268,0.04522406,2720.9,2720.5,0.7857]
[1739581459586,3.67551,2720.8,2720.5,0.7857]
[1739581460763,3.67561,2720.7,2720.3,0.7857]
[1739581461380,3.67551,2720.8,2720.3,5.575491]
[1739581461690,3.67551,2720.8,2720.3,4.46168]
[1739581461837,3.67551,2720.8,2720.4,3.67591]
[1739581462579,3.67551,2720.8,2720.3,8.13766]
[1739581462798,3.67551,2720.8,2720.3,4.46168]
[1739581463883,3.67516,2721.0,2720.3,4.46168]
[1739581464089,3.67526,2720.9,2720.4,3.67584]
[1739581464246,3.67533,2720.9,2720.4,3.67592]
[1739581464444,3.67516,2721.0,2720.4,3.67592]
[1739581464659,3.67527,2720.9,2720.4,3.67592]
[1739581465259,3.67525,2720.9,2720.3,4.46168]
[1739581465456,0.7911,2721.1,2720.4,4.121968]
[1739581465677,3.67518,2721.0,2720.4,0.446168]
[1739581465857,3.67528,2720.9,2720.4,4.122088]
[1739581466661,3.67528,2720.9,2720.4,4.121988]
[1739581466875,7.3501,2721.1,2720.6,0.8329]
[1739581467050,3.67499,2721.1,2720.6,4.50847]
[1739581467390,3.67499,2721.1,2720.6,5.3715188]
[1739581468078,4.48381,2721.3,2720.7,3.67544]
[1739581468248,3.67486,2721.2,2720.7,3.67544]
[1739581469483,4.48373,2721.3,2720.8,3.67537]
[1739581469671,3.67473,2721.3,2720.8,3.67537]
[1739581469873,3.67473,2721.3,2720.8,4.58004588]
[1739581470277,3.67438,2721.6,2721.1,3.6749]
[1739581470445,3.67445,2721.5,2721.0,3.0]
[1739581471649,3.67445,2721.5,2721.0,6.6751]
[1739581472289,3.67438,2721.6,2720.9,3.8329]
[1739581472585,3.67459,2721.4,2720.9,3.8329]
[1739581473561,3.67471,2721.3,2720.9,0.8329]
[1739581473863,3.67471,2721.3,2720.9,3.8329]
[1739581474058,3.67471,2721.3,2720.9,0.8329]
[1739581474285,3.67471,2721.3,2720.9,3.8329]
[1739581474490,3.67451,2721.5,2720.9,8.71688859]
[1739581475405,3.67459,2721.4,2720.9,8.71688859]
[1739581475566,7.34905,2721.5,2720.9,8.71688859]
[1739581475767,3.67472,2721.3,2720.9,5.04171859]
[1739581476066,7.34955,2721.3,2720.9,3.8329]
[1739581476266,3.67458,2721.4,2720.9,3.8329]
[1739581476481,3.67445,2721.5,2720.9,3.8329]
[1739581476682,3.67457,2721.4,2720.9,4.58372]
[1739581477301,3.67472,2721.3,2720.9,4.58372]
[1739581477898,3.67488,2721.2,2720.9,1.58372]
[1739581478072,3.67488,2721.2,2720.9,0.8329]
[1739581478805,3.67498,2721.1,2720.9,0.8329]
[1739581479002,3.67498,2721.1,2720.7,0.8192]
[1739581479161,3.67498,2721.1,2720.7,3.8192]
[1739581480200,3.67523,2721.0,2720.7,0.8192]
[1739581482018,0.04522406,2721.1,2720.4,3.446168]
[1739581482318,3.67511,2721.0,2720.5,0.8192]
[1739581482521,3.67499,2721.1,2720.7,3.0]
[1739581482725,0.85422406,2721.3,2720.6,3.0]
[1739581483029,3.67601,2720.4,2720.1,0.8192]
[1739581483718,3.72108406,2720.5,2719.7,3.67678]
[1739581483719,3.67608,2720.3,2719.7,3.67678]
[1739581484019,3.67638,2720.1,2719.8,0.8192]
[1739581484489,4.49018,2720.3,2719.8,0.8192]
[1739581486391,8.16637,2720.3,2719.8,1.268799]
[1739581486928,3.67621,2720.2,2719.8,1.268799]
[1739581487254,4.49018,2720.3,2719.8,1.268799]
[1739581487539,8.16633,2720.3,2719.8,1.268799]
[1739581487830,3.67608,2720.3,2719.8,4.945519]
[1739581487983,3.67621,2720.2,2719.8,1.268799]
[1739581488185,3.67608,2720.3,2719.8,1.268799]
[1739581489200,3.67608,2720.3,2719.8,4.945419]
[1739581489418,3.67576,2720.6,2719.9,1.6814179]
[1739581489615,3.67576,2720.6,2720.2,0.8192]
[1739581489815,3.67579,2720.5,2720.2,0.8192]
[1739581490450,7.3517,2720.5,2720.2,0.8192]
[1739581490610,3.67605,2720.4,2720.0,3.8192]
[1739581491521,3.67627,2720.2,2720.0,0.8192]
[1739581491704,3.67627,2720.2,2719.7,4.49601]
[1739581492119,3.67634,2720.1,2719.7,0.8192]
[1739581492650,3.67633,2720.1,2719.7,0.8192]
[1739581496612,3.67627,2720.2,2719.7,0.8192]
[1739581496808,7.35257,2720.2,2719.7,1.568821]
[1739581497008,3.67627,2720.2,2719.7,1.568821]
[1739581497848,3.67627,2720.2,2719.7,5.245661]
[1739581499844,7.35258,2720.2,2719.7,5.245661]
[1739581500048,3.67634,2720.1,2719.7,1.568821]
[1739581500256,3.67627,2720.2,2719.7,1.568821]
[1739581500427,7.35256,2720.2,2719.7,1.568821]
[1739581500926,3.67633,2720.1,2719.7,1.568821]
[1739581501329,3.6762,2720.2,2719.7,5.245691]
[1739581501652,3.67612,2720.3,2719.8,4.5689511]
[1739581501855,3.6757,2720.6,2719.9,0.8206]
[1739581502165,3.6757,2720.6,2720.1,4.49686]
[1739581503349,3.6758,2720.5,2720.1,0.8206]
[1739581503749,5.32,2720.7,2720.1,0.8206]
[1739581503750,8.99559,2720.7,2720.1,0.8206]
[1739581503921,8.99559,2720.7,2720.2,4.425894]
[1739581504122,8.99559,2720.7,2720.3,0.8206]
[1739581504523,3.6758,2720.5,2720.3,0.8206]
[1739581504759,1.52038681,2720.9,2720.3,0.8206]
[1739581505048,3.67607,2720.3,2720.0,0.8206]
[1739581505226,3.67629,2720.2,2719.7,0.8206]
[1739581505627,7.35223,2720.3,2719.7,7.49737]
[1739581505828,3.67623,2720.2,2719.7,7.49737]
[1739581506454,0.7686,2720.5,2719.7,3.8206]
[1739581506630,7.35285,2720.1,2719.7,3.8206]
[1739581506832,3.67641,2720.1,2719.7,3.8206]
[1739581507725,3.67647,2720.0,2719.7,0.8206]
[1739581508085,3.67641,2720.1,2719.7,0.8206]
[1739581509161,4.44443,2720.5,2719.9,3.67658]
[1739581509320,3.67583,2720.5,2720.0,3.67645]
[1739581509513,3.67583,2720.5,2720.1,0.7926]
[1739581510254,3.67593,2720.4,2720.1,0.7926]
[1739581512429,3.67617,2720.3,2720.1,0.7926]
[1739581512629,3.67593,2720.4,2720.1,0.7926]
[1739581514068,3.67585,2720.5,2720.1,0.7926]
[1739581514780,3.67585,2720.5,2720.1,4.46892]
[1739581514980,3.67585,2720.5,2720.1,5.283465]
[1739581515848,3.67585,2720.5,2720.1,1.607145]
[1739581516163,7.35176,2720.5,2720.1,0.7926]
[1739581516472,3.67585,2720.5,2720.1,4.46893]
[1739581516770,7.35174,2720.5,2720.1,0.7926]
[1739581517269,3.67609,2720.3,2719.9,3.0]
[1739581517675,3.6763,2720.2,2719.8,0.7926]
[1739581518173,3.6763,2720.2,2719.8,3.7926]
[1739581518367,3.6763,2720.2,2719.8,0.7926]
[1739581518733,3.67584,2720.5,2719.8,1.239546]
[1739581518933,3.67596,2720.4,2719.9,3.67659]
[1739581519676,3.67584,2720.5,2720.0,3.67638]
[1739581519850,3.67545,2720.8,2720.3,0.7926]
[1739581520174,3.67568,2720.6,2720.3,0.7926]
[1739581520844,3.67577,2720.6,2720.1,4.4688]
[1739581521437,1.80418681,2720.9,2720.2,0.7926]
[1739581521438,0.75178681,2720.9,2720.2,0.7926]
[1739581521669,4.42711681,2720.9,2720.3,3.67597]
[1739581521876,4.42711681,2720.9,2720.3,7.35195]
[1739581522566,4.42711681,2720.9,2720.3,3.67597]
[1739581522770,3.67554,2720.7,2720.2,4.46871]
[1739581522972,3.67554,2720.7,2720.2,0.7926]
[1739581523271,3.67554,2720.7,2720.2,4.46879]
[1739581523470,8.10247681,2720.9,2720.3,4.24357067]
[1739581523775,8.10247681,2720.9,2720.3,3.67605]
[1739581524070,0.75178681,2720.9,2720.5,3.6757]
[1739581524375,0.75178681,2720.9,2720.6,0.811]
[1739581529473,4.42712681,2720.9,2720.6,0.811]
[1739581530076,3.67554,2720.7,2720.4,0.811]
[1739581530373,3.67594,2720.4,2720.0,0.811]
[1739581530673,3.67566,2720.6,2720.0,0.811]
[1739581530894,3.67566,2720.6,2720.0,4.4874]
[1739581531372,3.67566,2720.6,2720.0,0.811]
[1739581531561,3.67587,2720.5,2720.0,0.811]
[1739581532438,3.67593,2720.4,2720.0,0.811]
[1739581532988,3.67593,2720.4,2719.8,0.811]
[1739581532989,0.04522406,2720.3,2719.8,0.811]
[1739581533274,3.67637,2720.1,2719.8,0.811]
[1739581533853,3.67607,2720.3,2719.8,0.811]
[1739581534167,7.35224,2720.3,2719.8,0.811]
[1739581534773,3.6762,2720.2,2719.8,0.811]
[1739581535448,3.67636,2720.1,2719.8,0.811]
[1739581536937,7.3528,2720.1,2719.6,4.48794]
[1739581537477,3.67636,2720.1,2719.6,4.48794]
[1739581537683,3.67636,2720.1,2719.6,0.811]
[1739581537886,3.67569,2720.6,2719.6,0.811]
[1739581537887,3.67676,2719.8,2719.6,0.811]
[1739581538179,3.67676,2719.8,2719.4,0.811]
[1739581538353,3.72198406,2719.8,2719.4,0.811]
[1739581538558,3.67676,2719.8,2719.4,0.811]
[1739581538777,7.35335,2719.9,2719.4,0.811]
[1739581538948,3.67681,2719.8,2719.4,0.811]
[1739581540871,3.67664,2719.9,2719.4,0.811]
[1739581541069,0.7838,2720.0,2719.4,4.48819]
[1739581541070,4.4603,2720.0,2719.4,4.48819]
[1739581541255,3.67661,2719.9,2719.4,4.48819]
[1739581541667,3.67661,2719.9,2719.4,4.48828]
[1739581541983,3.67676,2719.8,2719.4,0.811]
[1739581542344,0.7743,2719.6,2719.3,3.0]